Cogmind - Beta 15 *** ADVENTURER MODE // 2025.06.09 @ 12:22:18 Player: triibiis Result: Destroyed by 01-MTF with 01-MTF's Shockpuncher Performance ------------- Evolutions (1) 500 Regions Visited (3) 600 Robots Destroyed (72) 360 Value Destroyed (1958) 1958 Prototype IDs (5) 100 Alien Tech Used (0) 0 Bonus (-188) -188 TOTAL SCORE: 3330 Bonus ------- Friendly Fire -188 Cogmind --------- Core Integrity 0/400 Matter 215/300 Energy 467/500 System Corruption 2% Temperature Cool (22) Movement Core (550) Ox10 Location -9/Storage Parts ------- > --- POWER (2) -------- F-cell Engine > --- PROPULSION (2) --- (None) > --- UTILITY (3) ------ Medium Storage Unit Improved Sensor Array > --- WEAPON (2) ------- EMP Blaster Rocket Launcher > --- INVENTORY (10) --- Shock Rifle Advanced Beam Rifle EMP Blaster EMP Blaster Rocket Launcher Rocket Launcher Rocket Launcher Datajack Mining Laser Peak State ------------ > --- POWER ------------ Backup Power I F-cell Engine > --- PROPULSION ------- Backup Propulsion I Backup Propulsion I > --- UTILITY ---------- Medium Storage Unit Improved Sensor Array Hardened Light Armor Plating > --- WEAPON ----------- EMP Blaster Mini Grenade Launcher > --- INVENTORY -------- Improved Treads Shock Rifle Advanced Beam Rifle Advanced Beam Rifle EMP Blaster EMP Blaster EMP Blaster Datajack Mining Laser Welding Torch [Rating: 21] Favorites ----------- Power Improved Ion Engine Engine Improved Ion Engine Propulsion Light Treads Treads Light Treads Wheel Compact Wheel Hover Unit Backup Propulsion I Utility Medium Storage Unit Device Improved Sensor Array Storage Medium Storage Unit Processor Salvage Targeting Computer Protection Hardened Light Armor Plating Weapon Light Cannon Energy Gun Advanced Beam Rifle Ballistic Gun Assault Rifle Ballistic Cannon Light Cannon Launcher EMP Blaster Build | -11 -10 -9 -9 ------- Run | Yrd Mat Mat Sto Slots Evolved 2 | . . 2 . Power 1 | . . 1 . Propulsion . | . . . . Utility 1 | . . 1 . Weapon . | . . . . Parts Attached 36 | 8 9 9 10 Power 5 | 1 1 2 1 Engine 5 | 1 1 2 1 Core . | . . . . Reactor . | . . . . Propulsion 11 | 3 3 4 1 Treads 10 | 2 3 4 1 Leg . | . . . . Wheel 1 | 1 . . . Hover . | . . . . Flight . | . . . . Utility 8 | 1 3 3 1 Device 1 | . . 1 . Storage 3 | 1 1 1 . Processor 1 | . 1 . . Hackware . | . . . . Protection 3 | . 1 1 1 Artifact . | . . . . Weapon 12 | 3 2 . 7 Energy Gun 5 | 1 . . 4 Energy Cannon . | . . . . Ballistic Gun 2 | 2 . . . Ballistic Cannon 2 | . 2 . . Launcher 3 | . . . 3 Special Weapon . | . . . . Impact Weapon . | . . . . Slashing Weapon . | . . . . Piercing Weapon . | . . . . Special Melee Weapon . | . . . . Unidentified Prototypes 3 | . . . 3 Parts Lost 12 | . 1 1 10 Power 2 | . . . 2 Propulsion 4 | . 1 . 3 Utility 2 | . . 1 1 Weapon 4 | . . . 4 Highest Loss Streak 2 | . 1 1 2 To Critical Strikes . | . . . . Average Backups 7 | 2 7 6 8 Power 1 | . 2 . . Propulsion 1 | 1 2 1 . Utility . | . . . . Weapon 3 | . 1 2 5 Tool/Special . | . . . . Unused Backups 19 | 1 2 4 12 Power 3 | . 2 1 . Propulsion 4 | 1 . 3 . Utility . | . . . . Weapon 10 | . . . 10 Tool/Special 2 | . . . 2 Average Slot Usage (%) 90 | . 98 85 85 Engine 14 | . 14 16 14 Treads 19 | . 27 22 6 Hover 3 | . . . 11 Device 3 | . . 1 11 Storage 14 | . 14 16 13 Processor 4 | . 8 5 . Protection 4 | . 4 2 6 Energy Gun 5 | . 6 . 10 Ballistic Gun 2 | . 6 . . Ballistic Cannon 12 | . 14 22 1 Launcher 3 | . . . 10 Peak Build Rating 21 | 6 10 15 21 Average Rating 12 | 4 8 12 17 On Entrance 7 | . 6 10 15 Naked Turns . | . . . . Heaviest Build 34 | 12 23 33 34 Greatest Support 46 | 40 40 46 46 Greatest Overweight (x) 6 | 1 3 . 6 Average Overweight (x) . | . . . 1 Largest Inventory Capacity 10 | 8 10 10 10 Average Capacity 9 | 6 8 10 10 Most Carried 10 | 5 8 10 10 Average Carried 7 | 2 7 6 8 Final Capacity 10 | 8 10 10 10 Final Carried 10 | 4 8 10 9 Class Distribution -------------------- 100% | Mutant Dominant Class ---------------- Mutant | -10/Materials Mutant | -9/Materials Mutant | -9/Storage Resources | -11 -10 -9 -9 ----------- Run | Yrd Mat Mat Sto Matter Collected 1523 | 203 503 612 205 Remotely . | . . . . Salvage Created 2092 | . 685 926 481 Parts 141 | . 39 63 39 Haulers Intercepted 3 | . . 3 . Recyclers Shooed 2 | . 1 1 . Parts Field Recycled . | . . . . Retrieved Matter . | . . . . Parts Self-Destructed . | . . . . Prevented . | . . . . Kills | -11 -10 -9 -9 ------- Run | Yrd Mat Mat Sto Combat Hostiles Destroyed 55 | . 19 23 13 Guns 14 | . 6 . 8 Cannons 39 | . 13 23 3 AOE 2 | . . . 2 Classes Destroyed 11 | . 5 6 . Worker 2 | . . 1 1 Builder 3 | . 1 1 1 Hauler 3 | . . 3 . Recycler 1 | . . 1 . Operator 1 | . . 1 . Watcher 7 | . 3 4 . Swarmer 13 | . 3 4 6 Grunt 29 | . 14 13 2 Brawler 1 | . . 1 . Sentry 10 | . . 5 5 Subdweller 2 | . 2 . . Best Kill Streak 8 | . 3 8 4 Combat Bots Only 8 | . 3 8 4 Max Kills in Single Turn 2 | . 1 1 2 Gunslinging . | . . . . Exploded 1 | . . . 1 Melee . | . . . . Uniques/NPCs Destroyed . | . . . . Combat | -11 -10 -9 -9 -------- Run | Yrd Mat Mat Sto Hostile Shots Fired 364 | . 71 111 182 Missed 105 | . 21 31 53 Hits 259 | . 50 80 129 Projectile 259 | . 50 80 129 Critical Strikes 6 | . . 4 2 Damage Taken 2545 | . 495 723 1327 Core 458 | . 58 99 301 Absorbed by Shields . | . . . . Redirected to Shielding 8 | . 8 . . Ignored by Resistances 778 | . 146 226 406 Regen/Repaired (Parts) 93 | . 93 . . Core Remaining (%) 88 | 100 76 . . Volleys Fired 154 | . 52 73 29 Largest 2 | . 2 2 2 Hottest 122 | . 70 60 122 Shots Fired 304 | . 103 145 56 Gun 83 | . 51 . 32 Cannon 207 | . 52 145 10 Launcher 14 | . . . 14 Special . | . . . . Kinetic 233 | . 78 145 10 Thermal 49 | . 25 . 24 Explosive 6 | . . . 6 Electromagnetic 16 | . . . 16 Robot Hit Streak 18 | . 11 18 7 Robot Miss Streak 6 | . 2 6 3 Penetration Max . | . . . . Secondary Targets 5 | . 2 . 3 Max Gunslinging Chain 1 | . 1 . 1 Shots Hit Robots 193 | . 67 89 37 Core Hits 87 | . 31 37 19 Critical Kills . | . . . . Critical Parts Destroyed . | . . . . Critical Strikes 16 | . 6 9 1 Burn 4 | . 3 . 1 Blast 12 | . 3 9 . Melee Attacks . | . . . . Impact . | . . . . Slashing . | . . . . Piercing . | . . . . Sneak Attacks . | . . . . Combat Hostiles . | . . . . Follow-up Attacks . | . . . . Damage Inflicted 3535 | . 1040 1632 863 Guns 811 | . 418 . 393 Cannons 2395 | . 620 1632 143 Explosions 325 | . . . 325 Melee . | . . . . Ramming 4 | . 2 . 2 Kinetic 2611 | . 836 1632 143 Thermal 482 | . 202 . 280 Explosive 197 | . . . 197 Electromagnetic 241 | . . . 241 Impact . | . . . . Slashing . | . . . . Piercing . | . . . . Highest Corruption 2 | . . 1 2 Average Corruption 1 | . . 1 1 Corruption Purged . | . . . . Corruption Blocked . | . . . . Effects 23 | . . 7 16 Message Errors 5 | . . 1 4 Matter Fused 6 | . . 1 5 Heat Flow Errors 1 | . . 1 . Energy Discharges 2 | . . 1 1 Parts Fused 1 | . . 1 . Data Loss (minor) 3 | . . . 3 Data Loss (major) 1 | . . . 1 Misfires 2 | . . . 2 Alerts 1 | . . 1 . Weapon Failures 1 | . . 1 . Overload Shots . | . . . . Overflow Damage 17 | . . 17 . Projectiles 17 | . . 17 . Explosions . | . . . . Melee . | . . . . Knockbacks 22 | . 6 16 . Impact . | . . . . Kinetic 22 | . 6 16 . Secondary . | . . . . Self-Inflicted Damage 123 | . . . 123 Shots 7 | . . . 7 Rammed 3 | . 1 . 2 Targets Rammed 3 | . 1 . 2 Kicked . | . . . . Crushed . | . . . . Highest Temperature 361 | . 112 361 168 Average Temperature 62 | . 28 101 33 Received Heat Transfer 1230 | . 276 435 519 Effects 5 | . . 5 . Energy Bleed 3 | . . 3 . Short Circuit 2 | . . 2 . Siege Activations . | . . . . Martial Activations . | . . . . Shielding Activations . | . . . . Robots Disrupted . | . . . . Combat Hostiles . | . . . . Robots Corrupted . | . . . . Combat Hostiles . | . . . . Parts Fried 1 | . . . 1 Impact Corruptions . | . . . . Robots Melted . | . . . . Combat Hostiles . | . . . . Parts Melted 3 | . 3 . . Heat Transferred 1406 | . 814 . 592 Parts Sabotaged . | . . . . Parts Stolen . | . . . . Parts Stripped . | . . . . Power Chain Reactions 1 | . . . 1 Alert | -11 -10 -9 -9 ------- Run | Yrd Mat Mat Sto Maximum Alert Level 1 | . . 1 1 Low Security (%) 82 | 100 100 38 98 Level 1 17 | . . 61 1 Level 2 . | . . . . Level 3 . | . . . . Level 4 . | . . . . Level 5 . | . . . . High Security . | . . . . Max Security . | . . . . Peak Influence 316 | . 122 316 207 Initial 78 | . . . 78 Average 76 | . 32 166 56 Influence Increases 1662 | . 504 693 465 Destroy 0b10 Robot/C 1060 | . 340 460 260 Destroy 0b10 Robot/NC 85 | . 20 55 10 Destroy Leader 280 | . 86 114 80 Successful Hack 53 | . 28 19 6 Disable Machine 72 | . . 9 63 Destroy Structure 52 | . . 6 46 Partial Spotted 15 | . 15 . . Lose Combat Pursuer 45 | . 15 30 . Influence Decreases 1662 | . 504 474 684 Entered New Map 141 | . . . 141 Time Decay 1401 | . 494 464 443 Lost Part 120 | . 10 10 100 Squads Dispatched 10 | . 6 2 2 Investigation 7 | . 6 1 . Extermination . | . . . . Reinforcement 3 | . . 1 2 Assault . | . . . . Garrison . | . . . . Intercept . | . . . . Searches Triggered . | . . . . Construction Impeded . | . . . . Haulers Reinforced . | . . . . Active Scanning Responses . | . . . . Cargo Convoy Interrupts . | . . . . Stealth | -11 -10 -9 -9 --------- Run | Yrd Mat Mat Sto Distress Signals 6 | . 1 3 2 Communications Jammed . | . . . . Distress Signals . | . . . . Times Spotted 83 | . 26 36 21 Peak Tracking Total 7 | . 4 6 7 Tactical Retreats 3 | . 1 2 . Traps | -11 -10 -9 -9 ------- Run | Yrd Mat Mat Sto Traps Triggered 5 | . 3 . 2 Indirectly . | . . . . Trap Hack Attempts . | . . . . Triggered . | . . . . Disarmed . | . . . . Reprogrammed . | . . . . Reused . | . . . . Traps Extracted . | . . . . Installed . | . . . . Triggered . | . . . . Machines | -11 -10 -9 -9 ---------- Run | Yrd Mat Mat Sto Machines Disabled 8 | . . 1 7 Max in Single Turn 2 | . . 1 2 Machines Repaired . | . . . . Machines Dismantled . | . . . . Machines Sabotaged . | . . . . Overloaded Fab Kills . | . . . . Hacking | -11 -10 -9 -9 --------- Run | Yrd Mat Mat Sto Machines Accessed 16 | . 9 2 5 Terminals 13 | . 8 2 3 Fabricators . | . . . . Repair Stations 2 | . 1 . 1 Recycling Units . | . . . . Scanalyzers . | . . . . Garrison Access 1 | . . . 1 Total Hacks 65 | . 42 8 15 Successful 33 | . 25 3 5 Failed 32 | . 17 5 10 Catastrophic 11 | . 8 2 1 Database Lockouts . | . . . . Manual 18 | . 11 7 . Terminals 54 | . 38 8 8 Fabricators . | . . . . Repair Stations 8 | . 4 . 4 Recycling Units . | . . . . Scanalyzers . | . . . . Garrison Access 3 | . . . 3 Terminal Hacks 28 | . 22 3 3 Record 13 | . 11 . 2 Robot Analysis 1 | . . 1 . Prototype ID Bank 1 | . 1 . . Open Door 1 | . . . 1 Level Access Points 2 | . 1 1 . Branch Access Points 2 | . 1 1 . Emergency Access Points 1 | . 1 . . Terminal Index 1 | . 1 . . Alert Level 1 | . 1 . . Locate Traps 1 | . 1 . . Investigation Status 1 | . 1 . . Hauler Manifests 1 | . 1 . . Zone Layout 2 | . 2 . . Fabricator Hacks . | . . . . Repair Station Hacks 5 | . 3 . 2 Scan Component 3 | . 2 . 1 Repair 1 | . 1 . . Refit 1 | . . . 1 Recycling Unit Hacks . | . . . . Scanalyzer . | . . . . Garrison Access Hacks . | . . . . Unauthorized Hacks . | . . . . Terminals . | . . . . Fabricators . | . . . . Repair Stations . | . . . . Recycling Units . | . . . . Scanalyzers . | . . . . Garrison Access . | . . . . Data Cores Recovered 1 | . . 1 . Used . | . . . . Hacking Detections 16 | . 9 2 5 Full Trace Events 15 | . 9 2 4 Feedback Events 1 | . . 1 . Corruption 1 | . . 1 . Feedback Blocked . | . . . . Robot Schematics Acquired . | . . . . Robots Built . | . . . . Authchips . | . . . . Time . | . . . . Total Robot Build Rating . | . . . . Part Schematics Acquired . | . . . . Parts Built . | . . . . Authchips . | . . . . Time . | . . . . Total Part Build Rating . | . . . . Parts Repaired 1 | . 1 . . Time 26 | . 26 . . Parts Recycled . | . . . . Recycled Matter . | . . . . Retrieved Matter . | . . . . Retrieved Components . | . . . . Parts Scanalyzed . | . . . . Part Schematics Acquired . | . . . . Parts Damaged . | . . . . Bothacking | -11 -10 -9 -9 ------------ Run | Yrd Mat Mat Sto Used RIF Installer . | . . . . Robots Hacked . | . . . . Non-combat . | . . . . Combat . | . . . . Robot Hacks Applied . | . . . . Relay Couplers Released . | . . . . Fabnet Peak Effective % . | . . . . Robots Rewired . | . . . . Allies Hacked . | . . . . Hacks Repelled . | . . . . Allies | -11 -10 -9 -9 -------- Run | Yrd Mat Mat Sto Total Allies . | . . . . Largest Group . | . . . . Highest-Rated Group . | . . . . Highest-Rated Ally . | . . . . Total Orders . | . . . . Ally Attacks . | . . . . Total Damage . | . . . . Kills . | . . . . Allies Corrupted . | . . . . Allies Melted . | . . . . Intel | -11 -10 -9 -9 ------- Run | Yrd Mat Mat Sto Active Infowar (turns) 1403 | . . 122 1281 Sensors 1403 | . . 122 1281 Robot Analysis Total 1 | . . 1 . Derelict Logs Recovered . | . . . . Drone Launches . | . . . . Drone Recoveries . | . . . . Exploration | -11 -10 -9 -9 ------------- Run | Yrd Mat Mat Sto Turns Passed 4304 | 121 1680 1222 1281 Spaces Moved 2227 | 74 934 610 609 Core 47 | 11 1 . 35 Treads 1800 | 57 933 610 200 Legs . | . . . . Wheels 6 | 6 . . . Hover 374 | . . . 374 Flight . | . . . . Fastest Speed 50 | 50 160 160 156 Average Speed 164 | 140 160 160 179 Slowest Speed 350 | 160 200 160 350 Overloaded Moves . | . . . . Propulsion Burnouts . | . . . . Robots Hopped . | . . . . Potential Cave-ins . | . . . . Cave-ins Triggered . | . . . . Exploration Rate (%) 50 | 4 91 40 68 Regions Visited 3 Branch Regions 1 Pre-discovered Areas . | . . . . Known Exits Taken 2 | . 1 1 . Unknown Exits Taken 1 | 1 . . . Scrap Searched . | . . . . Spaces Dug . | . . . . Terrain Destroyed 48 | . . . 48 Melee . | . . . . Projectile . | . . . . AOE 48 | . . . 48 Terrain Rammed . | . . . . Walls Destroyed . | . . . . Machines Disabled . | . . . . Actions | -11 -10 -9 -9 --------- Run | Yrd Mat Mat Sto Total 2568 | 89 1018 714 747 Wait 65 | . 2 . 63 Move 2224 | 73 933 609 609 Hop . | . . . . Pick Up 30 | 4 6 10 10 Fast Attach 24 | 7 11 3 3 Attach 9 | 1 . 1 7 Detach 1 | 1 . . . Swap 10 | 1 4 5 . Drop 35 | 2 9 13 11 Fire 154 | . 52 73 29 Melee . | . . . . Ram 1 | . . . 1 Kick . | . . . . Crush 2 | . 1 . 1 Escape Stasis 13 | . . . 13 Rewire . | . . . . Trap . | . . . . Miscellaneous . | . . . . Route ------- -11/Scrapyard -10/Materials (discovered 5 exits: *Mat x3 / *Min x2) -9/Materials (discovered 6 exits: *Mat x3 / Min / *Sto x2) -9/Storage (discovered 1 exit: *Mat) History --------- Turn | Location | Event 20 | -11/Scrapyard | Discovered new exit (range 15) 122 | -11/Scrapyard | Entered Materials 292 | -10/Materials | Discovered new exit (range 15) 316 | -10/Materials | Build established: Mutant 379 | -10/Materials | Discovered new exit (range 15) 411 | -10/Materials | Discovered new exit (range 8) 582 | -10/Materials | Identified exit to Mines 582 | -10/Materials | Identified exit to Materials 822 | -10/Materials | Derelicts attacked the area 1570 | -10/Materials | Repaired Lgt. Cannon 1802 | -10/Materials | Entered another Materials area 1802 | -9/Materials | Evolved 2 slots: Power x1, Utility x1 2325 | -9/Materials | Destroyed 8 combat bots 2458 | -9/Materials | Identified exit to Mines 2458 | -9/Materials | Identified exit to Storage 2458 | -9/Materials | Identified exit to Materials 3024 | -9/Materials | Entered Storage 3224 | -9/Storage | Core integrity fell below 50% 3373 | -9/Storage | Core integrity fell below 20% 3641 | -9/Storage | Discovered exit to Materials (range 15) 3686 | -9/Storage | Met 01-MTF 4305 | -9/Storage | Destroyed by 01-MTF with 01-MTF's Shockpuncher Last Messages --------------- U-05 Engineer builds a Wall. U-05 Engineer lays Concrete. U-05 Engineer builds a Wall. U-05 Engineer lays Concrete. Acquired Rocket Launcher. Dropped Mni. Grenade Launcher. Acquired Rocket Launcher. Dropped Mining Laser. Acquired Mining Laser. Dropped Welding Torch. Dropped Adv. Beam Rifle. Dropped EMP Blaster. Acquired Rocket Launcher. YVSCVN/ E:8Q6PVXA =: E